Cogmind - Beta 15 @@@ ROGUE MODE // 2025.05.31 @ 16:11:49 Player: DZKane Result: Destroyed by H-77 Assassin with High-powered Shotgun Performance ------------- Evolutions (6) 3000 Regions Visited (16) 3200 Robots Destroyed (111) 555 Value Destroyed (4221) 4221 Prototype IDs (34) 680 Alien Tech Used (0) 0 Bonus (2503) 2503 TOTAL SCORE: 14159 Bonus ------- High Alert Combat Kills 89 Follower Combat Kills 1314 Registered with UFD 300 Met Optimus in HQ 500 Met Data Miner 300 Cogmind --------- Core Integrity 0/1150 Matter 300/300 Energy 98/100 System Corruption 3% Temperature Cool (0) Movement Core (50) Location -4/Factory Parts ------- > --- POWER (2) -------- (None) > --- PROPULSION (6) --- (None) > --- UTILITY (9) ------ (None) > --- WEAPON (2) ------- (None) > --- INVENTORY (5) ---- Improved Terrain Scanner Quantum Capacitor Heavy Mass Driver Peak State ------------ > --- POWER ------------ Light Antimatter Reactor Light Antimatter Reactor > --- PROPULSION ------- Flexi-carbon Leg Flexi-carbon Leg Thunder Leg Thunder Leg Thunder Leg Myomer Leg > --- UTILITY ---------- Huge Storage Unit Advanced Signal Interpreter Improved Melee Analysis Suite Improved Melee Analysis Suite Improved Melee Analysis Suite Advanced Melee Analysis Suite Microactuators Phase Shifter Centrium Medium Armor Plating > --- WEAPON ----------- Falx Companion Sword > --- INVENTORY -------- Heavy Treads Heavy Treads Heavy Treads Carbon-fiber Leg Flexi-carbon Leg Improved Cooling System Improved Terrain Scanner Experimental Terrain Scan Processor Quantum Capacitor Improved Transmission Jammer Improved Transmission Jammer Improved Medium Armor Plating Graphene Brace Advanced Shield Generator Authchip [Propulsion] Mini Drone Bay Mini Drone Bay Heavy Plasma Cannon Heavy Mass Driver Improved Plasma Cutter [Rating: 115] Favorites ----------- Power Fission Core Engine Ion Engine Power Core Fission Core Reactor Antimatter Reactor Propulsion Cargo Legs Treads Light Treads Leg Cargo Legs Wheel Armored Huge Wheel Utility High-capacity Storage Unit Device Improved Shield Generator Storage High-capacity Storage Unit Processor Improved Melee Analysis Suite Hackware Hacking Suite Protection Scrap Shield Weapon Light Assault Rifle Energy Cannon Heavy Plasma Cannon Ballistic Gun Light Assault Rifle Ballistic Cannon Advanced Assault Cannon Launcher Grenade Launcher Special Weapon Mining Laser Impact Weapon Flail Slashing Weapon Companion Sword Build | -11 -10 -10 -10 -8 -8 -6 -6 -6 -6 -5 -5 -5 -5 -5 -5 -4 ------- Run | Yrd Mat Min Sub Rec Scr Fac Low Low Dat Pro Fac Was Fac Ext Cet Fac Slots Evolved 12 | . . . . . . 8 . . . . 2 . . . . 2 Power 1 | . . . . . . 1 . . . . . . . . . . Propulsion 4 | . . . . . . 3 . . . . . . . . . 1 Utility 7 | . . . . . . 4 . . . . 2 . . . . 1 Weapon . | . . . . . . . . . . . . . . . . . Parts Attached 132 | 1 7 5 7 2 2 18 5 4 . 9 8 6 4 26 3 25 Power 27 | . 1 . . 1 . 3 1 3 . 2 2 3 1 5 . 5 Engine 8 | . . . . 1 . 2 1 1 . 2 . . . 1 . . Core 14 | . 1 . . . . 1 . 2 . . 2 . 1 4 . 3 Reactor 5 | . . . . . . . . . . . . 3 . . . 2 Propulsion 52 | . 3 1 2 . . 4 1 1 . . 3 . 1 19 2 15 Treads 11 | . 2 1 . . . . . . . . . . . 5 . 3 Leg 37 | . 1 . 1 . . 4 1 1 . . 2 . 1 12 2 12 Wheel 4 | . . . 1 . . . . . . . 1 . . 2 . . Hover . | . . . . . . . . . . . . . . . . . Flight . | . . . . . . . . . . . . . . . . . Utility 39 | . 3 2 2 . . 8 3 . . 6 3 2 2 2 1 5 Device 18 | . 2 . . . . 3 1 . . 5 . 2 . 1 1 3 Storage 2 | . 1 . . . . . . . . . . . . . . 1 Processor 9 | . . . 1 . . 2 1 . . 1 2 . 1 1 . . Hackware 1 | . . . . . . . . . . . . . 1 . . . Protection 9 | . . 2 1 . . 3 1 . . . 1 . . . . 1 Artifact . | . . . . . . . . . . . . . . . . . Weapon 14 | 1 . 2 3 1 2 3 . . . 1 . 1 . . . . Energy Gun . | . . . . . . . . . . . . . . . . . Energy Cannon 1 | . . . . . . . . . . . . 1 . . . . Ballistic Gun 5 | 1 . 2 1 1 . . . . . . . . . . . . Ballistic Cannon 2 | . . . . . 2 . . . . . . . . . . . Launcher 2 | . . . 1 . . . . . . 1 . . . . . . Special Weapon 1 | . . . 1 . . . . . . . . . . . . . Impact Weapon 1 | . . . . . . 1 . . . . . . . . . . Slashing Weapon 2 | . . . . . . 2 . . . . . . . . . . Piercing Weapon . | . . . . . . . . . . . . . . . . . Special Melee Weapon . | . . . . . . . . . . . . . . . . . Unidentified Prototypes 5 | . . . 1 . . 1 1 . . . . . 1 . . 1 Parts Lost 47 | . . . 2 1 . 1 2 . . 6 4 2 . 6 1 22 Power 8 | . . . . 1 . . . . . . . . . 2 1 4 Propulsion 18 | . . . 1 . . . . . . . 3 . . 3 . 11 Utility 19 | . . . 1 . . 1 2 . . 6 1 2 . 1 . 5 Weapon 2 | . . . . . . . . . . . . . . . . 2 Highest Loss Streak 16 | . . . 1 1 . 1 1 . . 2 4 1 . 3 1 16 To Critical Strikes . | . . . . . . . . . . . . . . . . . Average Backups 17 | 6 12 19 18 19 19 16 16 17 18 16 18 16 6 13 15 18 Power . | 1 1 1 1 . . . . . . . 1 . . . . . Propulsion 2 | 4 4 5 4 4 2 . 1 1 1 1 1 . . 4 6 5 Utility 8 | . . 3 4 5 9 11 11 13 14 10 11 11 3 6 6 9 Weapon 3 | 1 4 10 8 8 4 1 1 1 1 1 2 1 1 2 2 2 Tool/Special . | . . . . . . . . . . . . . . . . . Unused Backups 65 | . 3 5 2 1 8 9 2 1 . . . 10 . 11 . 13 Power 2 | . . 1 . . . . . . . . . 1 . . . . Propulsion 10 | . 1 . . . 2 . . . . . . . . 7 . . Utility 34 | . 1 . . . 2 6 2 1 . . . 8 . 3 . 11 Weapon 16 | . 1 4 2 1 4 3 . . . . . . . . . 1 Tool/Special 3 | . . . . . . . . . . . . 1 . 1 . 1 Average Slot Usage (%) 88 | . 98 100 98 76 76 90 87 87 87 92 93 86 77 96 95 95 Engine 5 | . 5 . . 8 11 11 6 5 . 4 . . . . . . Core 5 | . 8 14 13 2 . . 6 6 12 7 10 3 . 9 6 4 Treads 4 | . 21 28 13 . . . . . . . . . . 1 . . Leg 16 | . 6 . . 11 11 22 25 25 25 25 19 13 9 22 29 28 Wheel 1 | . . . 12 . . . . . . . 3 5 5 1 . . Device 6 | . 12 . . . . 8 14 12 12 18 12 12 5 3 10 9 Storage 8 | . 14 14 13 11 11 6 6 6 6 6 5 5 5 5 5 5 Processor 14 | . . . . 11 11 14 9 12 12 13 22 23 27 33 29 25 Protection 6 | . . 14 13 11 6 11 6 6 6 . 3 . . . . 4 Ballistic Gun 7 | . 28 28 15 19 7 . . . . . . . . . . . Ballistic Cannon 3 | . . . . . 15 . . . . . . . . . . . Slashing Weapon 5 | . . . . . . 9 12 12 12 12 11 5 5 11 11 9 Peak Build Rating 115 | 6 13 11 29 30 35 76 87 87 87 87 90 85 76 87 86 115 Average Rating 54 | 6 10 11 11 28 31 64 84 86 87 80 81 76 66 79 81 102 On Entrance 54 | 6 6 13 11 29 28 34 76 87 87 87 81 80 55 76 86 80 Naked Turns 1 | . . . . . . . . . . . . . . . . 1 Heaviest Build 126 | 10 48 50 67 67 75 85 88 85 85 88 78 93 84 79 79 126 Greatest Support 210 | 20 40 40 55 55 55 106 109 109 109 109 109 28 28 140 90 210 Greatest Overweight (x) 5 | . 1 1 5 1 1 . . . . . 2 3 2 2 . 2 Average Overweight (x) . | . . 1 4 1 1 . . . . . 1 2 2 . . . Largest Inventory Capacity 25 | 8 20 20 20 20 20 20 20 20 20 20 20 20 20 20 20 25 Average Capacity 20 | 8 17 20 20 20 20 20 20 20 20 20 20 19 20 20 20 23 Most Carried 25 | 6 20 20 20 20 20 20 20 20 20 20 20 20 10 20 20 25 Average Carried 19 | 6 12 19 19 19 19 19 19 19 20 18 19 17 8 18 19 22 Final Capacity 20 | 8 20 20 20 20 20 20 20 20 20 20 20 20 20 20 20 5 Final Carried 20 | 6 20 20 18 20 20 20 18 20 20 20 20 8 10 20 20 5 Class Distribution -------------------- 56% | Mutant 13% | Scavenger-Gladiator 10% | Gladiator 9% | Derelict-Gladiator 4% | Commander-Gladiator 3% | Derelict-Mutant Dominant Class ---------------- Mutant | -10/Materials Mutant | -10/Mines Mutant | -10/Subcaves Mutant | -8/Recycling Mutant | -8/Scraptown Mutant | -6/Factory Gladiator | -6/Lower Caves Gladiator | -6/Lower Caves Gladiator | -6/Data Miner Derelict-Gladiator | -5/Proximity Caves Derelict-Gladiator | -5/Factory Derelict-Mutant | -5/Waste Derelict-Mutant | -5/Factory Scavenger-Gladiator | -5/Extension Scavenger-Gladiator | -5/Cetus Scavenger-Gladiator | -4/Factory Resources | -11 -10 -10 -10 -8 -8 -6 -6 -6 -6 -5 -5 -5 -5 -5 -5 -4 ----------- Run | Yrd Mat Min Sub Rec Scr Fac Low Low Dat Pro Fac Was Fac Ext Cet Fac Matter Collected 2511 | 199 114 115 50 188 105 487 103 54 . 188 55 97 . 427 37 292 Remotely . | . . . . . . . . . . . . . . . . . Salvage Created 6364 | . 197 127 100 106 . 571 785 180 . 806 227 830 . 1117 77 1241 Parts 252 | . 13 7 14 7 . 33 28 3 . 37 3 12 . 45 4 46 Haulers Intercepted 2 | . . . . . . 1 . . . . . . . . . 1 Recyclers Shooed 4 | . 1 . . . . 1 . . . . . . . . . 2 Parts Field Recycled . | . . . . . . . . . . . . . . . . . Retrieved Matter . | . . . . . . . . . . . . . . . . . Parts Self-Destructed 61 | . . . 5 . . . 25 13 . 18 . . . . . . Prevented 7 | . . . . . . . . . . 7 . . . . . . Kills | -11 -10 -10 -10 -8 -8 -6 -6 -6 -6 -5 -5 -5 -5 -5 -5 -4 ------- Run | Yrd Mat Min Sub Rec Scr Fac Low Low Dat Pro Fac Was Fac Ext Cet Fac Combat Hostiles Destroyed 92 | . 4 4 9 2 . 5 11 . . 18 1 3 . 12 1 22 Melee 60 | . . . . . . 5 11 . . 8 1 . . 12 1 22 Guns 12 | . 4 4 2 2 . . . . . . . . . . . . Cannons 2 | . . . . . . . . . . . . 2 . . . . AOE 17 | . . . 7 . . . . . . 10 . . . . . . Classes Destroyed 17 | . 2 1 2 1 . 5 3 . . 1 . 1 . 1 . . Worker 2 | . . . . . . 1 . . . . . . . . . 1 Builder 2 | . . . . . . 1 . . . . . . . 1 . . Hauler 2 | . . . . . . 1 . . . . . . . . . 1 Recycler 6 | . . . . . . 2 . . . . 1 . . 2 . 1 Minesweeper 1 | . . . . . . . 1 . . . . . . . . . Mechanic 2 | . . . . . . . . . . . . . . 2 . . Turret 2 | . . . 2 . . . . . . . . . . . . . Watcher 2 | . 1 . . . . 1 . . . . . . . . . . Swarmer 35 | . . 2 4 . . 3 3 . . 10 . . . . . 13 Grunt 32 | . 4 2 . . . . 7 . . 6 . . . 7 . 6 Brawler 1 | . . . . . . . 1 . . . . . . . . . Duelist 2 | . . . . . . . . . . 1 . . . 1 . . Sentry 10 | . . . . 2 . 1 . . . 1 1 . . 4 . 1 Programmer 3 | . . . . . . 1 . . . . . . . . . 2 Compactor 3 | . . . . . . . . . . . . 3 . . . . Cetus Guard 1 | . . . . . . . . . . . . . . . 1 . Subdweller 5 | . . . 5 . . . . . . . . . . . . . Samaritan 1 | . . . . . . . 1 . . . . . . . . . Best Kill Streak 9 | . 2 2 4 2 . 3 3 . . 8 1 2 . 3 1 9 Combat Bots Only 8 | . 2 2 4 2 . 3 3 . . 8 1 2 . 3 1 7 Max Kills in Single Turn 4 | . 1 1 4 1 . 1 2 . . 4 1 1 . 1 1 1 Gunslinging . | . . . . . . . . . . . . . . . . . Exploded 4 | . . . 4 . . . . . . 4 . . . . . . Melee 2 | . . . . . . 1 2 . . 1 1 . . 1 1 1 Uniques/NPCs Destroyed . | . . . . . . . . . . . . . . . . . Combat | -11 -10 -10 -10 -8 -8 -6 -6 -6 -6 -5 -5 -5 -5 -5 -5 -4 -------- Run | Yrd Mat Min Sub Rec Scr Fac Low Low Dat Pro Fac Was Fac Ext Cet Fac Hostile Shots Fired 1025 | . 26 31 49 16 . 36 97 . . 116 28 3 . 92 19 512 Missed 327 | . 9 5 15 4 . 9 35 . . 29 6 . . 23 10 182 Hits 698 | . 17 26 34 12 . 27 62 . . 87 22 3 . 69 9 330 Melee 23 | . . . . . . . 2 . . 7 . 3 . 3 . 8 Projectile 675 | . 17 26 34 12 . 27 60 . . 80 22 . . 66 9 322 Critical Strikes 29 | . . . . 1 . . 4 . . 5 1 1 . 5 . 12 Actively Blocked 9 | . . . . . . . . . . . . . . . . 9 Part Disruptions 2 | . . . . . . . . . . . . . . . . 2 Damage Taken 11551 | . 243 291 375 215 . 252 898 . . 1362 397 341 . 1420 187 5570 Core 1741 | . 47 35 79 15 . 32 39 . . 137 23 33 . 138 . 1163 Absorbed by Shields 1378 | . . . . . . 95 285 . . 384 142 66 . 123 66 217 Ignored by Resistances 30 | . . . . . . 2 28 . . . . . . . . . Regen/Repaired (Parts) 122 | . . . . . . . . . . . . . . 122 . . Core Remaining (%) 71 | 100 . . . . 29 . . . . 75 . . . . 80 . Volleys Fired 153 | . 28 21 44 10 . . . . . 11 . 39 . . . . Largest 2 | . 2 2 2 2 . . . . . 1 . 1 . . . . Hottest 100 | . 40 40 100 40 . . . . . 39 . 90 . . . . Shots Fired 223 | . 56 42 55 19 . . . . . 11 . 39 1 . . . Gun 136 | . 56 42 20 18 . . . . . . . . . . . . Cannon 40 | . . . . . . . . . . . . 39 1 . . . Launcher 27 | . . . 15 1 . . . . . 11 . . . . . . Special 20 | . . . 20 . . . . . . . . . . . . . Kinetic 136 | . 56 42 20 18 . . . . . . . . . . . . Thermal 60 | . . . 20 . . . . . . . . 39 1 . . . Explosive 16 | . . . 15 1 . . . . . . . . . . . . Electromagnetic 11 | . . . . . . . . . . 11 . . . . . . Robot Hit Streak 45 | . 7 5 16 34 . . . . . 39 . 45 . . . . Robot Miss Streak 9 | . 4 9 1 . . . . . . . . 2 1 . . . Penetration Max . | . . . . . . . . . . . . . . . . . Secondary Targets 2 | . . 2 . . . . . . . . . . . . . . Max Gunslinging Chain 1 | . . 1 . . . . . . . . . . . . . . Shots Hit Robots 378 | . 33 24 21 18 . 20 40 5 . 39 13 29 . 47 3 86 Core Hits 175 | . 17 11 23 8 . 11 18 1 . 26 3 4 . 20 2 31 Critical Kills 2 | . 1 . . . . . . . . . . 1 . . . . Critical Parts Destroyed . | . . . . . . . . . . . . . . . . . Critical Strikes 16 | . 1 . . . . . 3 . . 3 2 1 . 2 . 4 Meltdown 1 | . . . . . . . . . . . . 1 . . . . Destroy 1 | . 1 . . . . . . . . . . . . . . . Sever 4 | . . . . . . . 1 . . 1 . . . 2 . . Melee Attacks 350 | . . . . . . 48 54 5 . 46 32 9 2 50 3 101 Impact 4 | . . . . . . 4 . . . . . . . . . . Slashing 346 | . . . . . . 44 54 5 . 46 32 9 2 50 3 101 Piercing . | . . . . . . . . . . . . . . . . . Sneak Attacks 22 | . . . . . . 5 3 . . . 1 . . 9 . 4 Combat Hostiles 2 | . . . . . . . 1 . . . . . . 1 . . Follow-up Attacks 38 | . . . . . . 1 7 . . 4 2 . . 10 1 13 Damage Inflicted 15385 | . 269 189 1035 179 . 957 1768 320 . 2199 618 896 . 2567 142 4246 Guns 721 | . 269 189 133 130 . . . . . . . . . . . . Cannons 896 | . . . . . . . . . . . . 896 . . . . Explosions 1726 | . . . 902 49 . . . . . 775 . . . . . . Melee 12037 | . . . . . . 957 1768 320 . 1424 618 . . 2562 142 4246 Ramming 5 | . . . . . . . . . . . . . . 5 . . Kinetic 721 | . 269 189 133 130 . . . . . . . . . . . . Thermal 896 | . . . . . . . . . . . . 896 . . . . Explosive 951 | . . . 902 49 . . . . . . . . . . . . Electromagnetic 775 | . . . . . . . . . . 775 . . . . . . Impact 26 | . . . . . . 26 . . . . . . . . . . Slashing 12011 | . . . . . . 931 1768 320 . 1424 618 . . 2562 142 4246 Piercing . | . . . . . . . . . . . . . . . . . Highest Corruption 33 | . . . . . . . 3 3 3 4 . 33 33 33 33 3 Average Corruption 15 | . . . . . . . 3 3 3 3 . 16 33 33 33 2 Corruption Purged . | . . . . . . . . . . . . . . . . . Corruption Blocked . | . . . . . . . . . . . . . . . . . Effects 150 | . . . . . . . 16 15 2 13 . 17 6 73 8 . Message Errors 49 | . . . . . . . 6 7 1 2 . 5 3 24 1 . Matter Fused 32 | . . . . . . . 5 1 . 3 . 2 1 18 2 . Heat Flow Errors 7 | . . . . . . . 1 1 1 2 . . . 2 . . Energy Discharges 26 | . . . . . . . 1 2 . 5 . 2 1 12 3 . Parts Rejected 3 | . . . . . . . 1 . . . . 1 . 1 . . Parts Fused 2 | . . . . . . . . . . . . 1 . 1 . . Data Loss (minor) 11 | . . . . . . . 2 2 . . . 2 . 4 1 . Data Loss (major) 9 | . . . . . . . . 1 . 1 . . . 7 . . Misfires 2 | . . . . . . . . . . . . 1 1 . . . Alerts 2 | . . . . . . . . 1 . . . . . 1 . . Misdirections 6 | . . . . . . . . . . . . 2 . 3 1 . Weapon Failures 1 | . . . . . . . . . . . . 1 . . . . Overload Shots . | . . . . . . . . . . . . . . . . . Overflow Damage 827 | . . . 5 12 . 46 116 150 . 4 12 . . 224 . 258 Projectiles . | . . . . . . . . . . . . . . . . . Explosions 21 | . . . 5 12 . . . . . 4 . . . . . . Melee 806 | . . . . . . 46 116 150 . . 12 . . 224 . 258 Knockbacks . | . . . . . . . . . . . . . . . . . Impact . | . . . . . . . . . . . . . . . . . Kinetic . | . . . . . . . . . . . . . . . . . Secondary . | . . . . . . . . . . . . . . . . . Self-Inflicted Damage 129 | . . . 73 39 . . . . . 17 . . . . . . Shots 7 | . . . 4 1 . . . . . 2 . . . . . . Rammed . | . . . . . . . . . . . . . . . . . Targets Rammed 1 | . . . . . . . . . . . . . . 1 . . Kicked 1 | . . . . . . . . . . . . . . 1 . . Crushed . | . . . . . . . . . . . . . . . . . Highest Temperature 308 | . 18 84 . 27 . . 157 236 173 208 3 308 44 150 . 9 Average Temperature 69 | . 10 27 . 15 . . 67 119 87 99 3 149 29 62 . 7 Received Heat Transfer 2068 | . 138 99 102 81 . 8 390 . . 378 74 . . 413 24 361 Siege Activations . | . . . . . . . . . . . . . . . . . Martial Activations . | . . . . . . . . . . . . . . . . . Shielding Activations . | . . . . . . . . . . . . . . . . . Robots Disrupted . | . . . . . . . . . . . . . . . . . Combat Hostiles . | . . . . . . . . . . . . . . . . . Robots Corrupted . | . . . . . . . . . . . . . . . . . Combat Hostiles . | . . . . . . . . . . . . . . . . . Parts Fried 10 | . . . . . . . . . . 10 . . . . . . Impact Corruptions . | . . . . . . . . . . . . . . . . . Robots Melted 1 | . . . . . . . . . . . . 1 . . . . Combat Hostiles 1 | . . . . . . . . . . . . 1 . . . . Parts Melted 1 | . . . . . . . . . . . . 1 . . . . Heat Transferred 1400 | . . . . . . . . . . . . 1400 . . . . Parts Sabotaged 4 | . . . . . . . . . . . . . . . . 4 Parts Stolen . | . . . . . . . . . . . . . . . . . Parts Stripped . | . . . . . . . . . . . . . . . . . Power Chain Reactions 1 | . . . . . . . . . . 1 . . . . . . Alert | -11 -10 -10 -10 -8 -8 -6 -6 -6 -6 -5 -5 -5 -5 -5 -5 -4 ------- Run | Yrd Mat Min Sub Rec Scr Fac Low Low Dat Pro Fac Was Fac Ext Cet Fac Maximum Alert Level 2 | . . . . . . . . . . . . . . 2 2 2 Low Security (%) 75 | 100 100 100 . 100 . 100 . . . . 100 100 100 42 . 2 Level 1 18 | . . . . . . . . . . . . . . 37 50 84 Level 2 6 | . . . . . . . . . . . . . . 20 49 12 Level 3 . | . . . . . . . . . . . . . . . . . Level 4 . | . . . . . . . . . . . . . . . . . Level 5 . | . . . . . . . . . . . . . . . . . High Security . | . . . . . . . . . . . . . . . . . Max Security . | . . . . . . . . . . . . . . . . . Peak Influence 649 | . 50 68 . 91 . 79 . . . . 39 6 2 649 428 429 Initial 360 | . . . . 81 . . . . . . 39 . . . 360 214 Average 100 | . 10 12 . 26 . 11 . . . . 11 . . 239 395 306 Influence Increases 4103 | . 137 136 255 206 . 225 250 10 . 430 99 28 6 1526 134 661 Destroy 0b10 Robot/C 2440 | . 80 100 120 40 . 100 220 . . 360 20 . . 840 80 480 Destroy 0b10 Robot/NC 130 | . 5 . . . . 30 10 10 . . 5 . . 50 5 15 Destroy Leader 314 | . 32 20 . . . 34 20 . . 40 10 . . 86 . 72 Allied During Kill 474 | . . 1 . . . . . . . . . . . 410 43 20 Successful Hack 112 | . 5 . . 5 . 14 . . . . 38 . . 50 . . Select Force Hacks 150 | . . . . 150 . . . . . . . . . . . . Disable Machine 75 | . . 15 . . . 15 . . . . . . . 15 . 30 Destroy Structure 168 | . . . . 11 . 17 . . . . 26 28 6 60 6 14 Partial Spotted 15 | . . . . . . . . . . . . . . . . 15 Lose Combat Pursuer 225 | . 15 . 135 . . 15 . . . 30 . . . 15 . 15 Influence Decreases 3864 | . 137 136 84 377 . 178 297 10 . 366 163 28 4 883 395 806 Entered New Map 591 | . . . . 90 . . 19 . . . 25 . . 2 285 170 Time Decay 2403 | . 137 116 74 277 . 178 258 10 . 316 130 26 4 461 60 356 Lost Part 340 | . . . 10 10 . . 20 . . 40 8 2 . 20 10 220 Lost Ally 530 | . . 20 . . . . . . . 10 . . . 400 40 60 Squads Dispatched 14 | . 1 . . . . 3 . . . . . . . 4 . 6 Investigation 6 | . . . . . . 1 . . . . . . . 3 . 2 Extermination 4 | . . . . . . 2 . . . . . . . . . 2 Reinforcement 2 | . 1 . . . . . . . . . . . . . . 1 Assault 2 | . . . . . . . . . . . . . . 1 . 1 Garrison . | . . . . . . . . . . . . . . . . . Intercept . | . . . . . . . . . . . . . . . . . Searches Triggered . | . . . . . . . . . . . . . . . . . Data Miner Redirects 1 | . . . . . . . . . . . . . . . . 1 Construction Impeded . | . . . . . . . . . . . . . . . . . Haulers Reinforced . | . . . . . . . . . . . . . . . . . Active Scanning Responses . | . . . . . . . . . . . . . . . . . Cargo Convoy Interrupts 1 | . . . . . . . . . . . . . . . . 1 Stealth | -11 -10 -10 -10 -8 -8 -6 -6 -6 -6 -5 -5 -5 -5 -5 -5 -4 --------- Run | Yrd Mat Min Sub Rec Scr Fac Low Low Dat Pro Fac Was Fac Ext Cet Fac Distress Signals 8 | . 1 . . . . . . . . . . . . 2 1 4 Communications Jammed . | . . . . . . . . . . . . . . . . . Distress Signals . | . . . . . . . . . . . . . . . . . Times Spotted 168 | . 7 8 10 2 . 11 12 1 . 19 2 6 . 35 5 50 Peak Tracking Total 15 | . 3 2 4 2 . 3 4 1 . 5 1 3 . 7 5 15 Tactical Retreats 8 | . 1 . 3 . . 1 . . . 1 . . . 1 . 1 Traps | -11 -10 -10 -10 -8 -8 -6 -6 -6 -6 -5 -5 -5 -5 -5 -5 -4 ------- Run | Yrd Mat Min Sub Rec Scr Fac Low Low Dat Pro Fac Was Fac Ext Cet Fac Traps Triggered 3 | . . . . . . . . . . . 1 . . 2 . . Indirectly . | . . . . . . . . . . . . . . . . . Trap Hack Attempts . | . . . . . . . . . . . . . . . . . Triggered . | . . . . . . . . . . . . . . . . . Disarmed . | . . . . . . . . . . . . . . . . . Reprogrammed . | . . . . . . . . . . . . . . . . . Reused . | . . . . . . . . . . . . . . . . . Traps Extracted . | . . . . . . . . . . . . . . . . . Installed . | . . . . . . . . . . . . . . . . . Triggered . | . . . . . . . . . . . . . . . . . Machines | -11 -10 -10 -10 -8 -8 -6 -6 -6 -6 -5 -5 -5 -5 -5 -5 -4 ---------- Run | Yrd Mat Min Sub Rec Scr Fac Low Low Dat Pro Fac Was Fac Ext Cet Fac Machines Disabled 10 | . . 1 3 . . 1 . . . . . . . 3 . 2 Max in Single Turn 3 | . . . 3 . . 1 . . . . . . . . . . Machines Repaired . | . . . . . . . . . . . . . . . . . Machines Dismantled . | . . . . . . . . . . . . . . . . . Machines Sabotaged . | . . . . . . . . . . . . . . . . . Overloaded Fab Kills . | . . . . . . . . . . . . . . . . . Hacking | -11 -10 -10 -10 -8 -8 -6 -6 -6 -6 -5 -5 -5 -5 -5 -5 -4 --------- Run | Yrd Mat Min Sub Rec Scr Fac Low Low Dat Pro Fac Was Fac Ext Cet Fac Machines Accessed 41 | . 1 . . 11 4 5 . 1 4 . 3 . . 9 . 3 Terminals 21 | . 1 . . 6 . 3 . . . . 3 . . 7 . 1 Fabricators 2 | . . . . . . 1 . . . . . . . . . 1 Repair Stations 1 | . . . . . . . . . . . . . . 1 . . Recycling Units 8 | . . . . 5 . 1 . . . . . . . 1 . 1 Scanalyzers . | . . . . . . . . . . . . . . . . . Garrison Access . | . . . . . . . . . . . . . . . . . Total Hacks 124 | . 2 . . 22 21 11 . 1 32 . 6 . . 24 . 5 Successful 80 | . 1 . . 9 21 4 . 1 32 . 2 . . 7 . 3 Failed 44 | . 1 . . 13 . 7 . . . . 4 . . 17 . 2 Catastrophic 9 | . . . . 3 . 2 . . . . 2 . . 2 . . Database Lockouts . | . . . . . . . . . . . . . . . . . Manual 29 | . 1 . . 12 . 2 . . . . 4 . . 7 . 3 Terminals 52 | . 2 . . 15 . 8 . . . . 6 . . 19 . 2 Fabricators 4 | . . . . . . 2 . . . . . . . . . 2 Repair Stations 3 | . . . . . . . . . . . . . . 3 . . Recycling Units 11 | . . . . 7 . 1 . . . . . . . 2 . 1 Scanalyzers . | . . . . . . . . . . . . . . . . . Garrison Access . | . . . . . . . . . . . . . . . . . Terminal Hacks 69 | . 1 . . 4 21 3 . 1 32 . 2 . . 5 . . Record 26 | . . . . 2 13 . . . 11 . . . . . . . Part Schematic 14 | . . . . 1 . . . . 13 . . . . . . . Robot Schematic 5 | . . . . . . . . . 5 . . . . . . . Robot Analysis 8 | . . . . . 7 . . . . . . . . 1 . . Prototype ID Bank 10 | . 1 . . 1 . 2 . . 3 . 1 . . 2 . . Open Door 2 | . . . . . 1 . . 1 . . . . . . . . Alert Level 1 | . . . . . . . . . . . . . . 1 . . Locate Traps 1 | . . . . . . . . . . . . . . 1 . . Hauler Manifests 1 | . . . . . . 1 . . . . . . . . . . Zone Layout 1 | . . . . . . . . . . . 1 . . . . . Fabricator Hacks 1 | . . . . . . . . . . . . . . . . 1 Load Schematic 1 | . . . . . . . . . . . . . . . . 1 Repair Station Hacks . | . . . . . . . . . . . . . . . . . Recycling Unit Hacks . | . . . . . . . . . . . . . . . . . Scanalyzer . | . . . . . . . . . . . . . . . . . Garrison Access Hacks . | . . . . . . . . . . . . . . . . . Unauthorized Hacks 10 | . . . . 5 . 1 . . . . . . . 2 . 2 Terminals . | . . . . . . . . . . . . . . . . . Fabricators 1 | . . . . . . . . . . . . . . . . 1 Recompile 1 | . . . . . . . . . . . . . . . . 1 Repair Stations 1 | . . . . . . . . . . . . . . 1 . . Patch 1 | . . . . . . . . . . . . . . 1 . . Recycling Units 8 | . . . . 5 . 1 . . . . . . . 1 . 1 Tunnel 5 | . . . . 5 . . . . . . . . . . . . Fedlink 2 | . . . . . . 1 . . . . . . . . . 1 Scrapoids 1 | . . . . . . . . . . . . . . 1 . . Scanalyzers . | . . . . . . . . . . . . . . . . . Garrison Access . | . . . . . . . . . . . . . . . . . Data Cores Recovered . | . . . . . . . . . . . . . . . . . Used . | . . . . . . . . . . . . . . . . . Hacking Detections 23 | . 1 . . 6 . 4 . . . . 3 . . 8 . 1 Full Trace Events 2 | . . . . 2 . . . . . . . . . . . . Feedback Events . | . . . . . . . . . . . . . . . . . Feedback Blocked . | . . . . . . . . . . . . . . . . . Robot Schematics Acquired 5 | . . . . . . . . . 5 . . . . . . . Robots Built . | . . . . . . . . . . . . . . . . . Authchips . | . . . . . . . . . . . . . . . . . Time . | . . . . . . . . . . . . . . . . . Total Robot Build Rating . | . . . . . . . . . . . . . . . . . Part Schematics Acquired 14 | . . . . 1 . . . . 13 . . . . . . . Parts Built . | . . . . . . . . . . . . . . . . . Authchips . | . . . . . . . . . . . . . . . . . Time . | . . . . . . . . . . . . . . . . . Total Part Build Rating . | . . . . . . . . . . . . . . . . . Parts Repaired . | . . . . . . . . . . . . . . . . . Time . | . . . . . . . . . . . . . . . . . Parts Recycled . | . . . . . . . . . . . . . . . . . Recycled Matter . | . . . . . . . . . . . . . . . . . Retrieved Matter . | . . . . . . . . . . . . . . . . . Retrieved Components . | . . . . . . . . . . . . . . . . . Parts Scanalyzed . | . . . . . . . . . . . . . . . . . Part Schematics Acquired . | . . . . . . . . . . . . . . . . . Parts Damaged . | . . . . . . . . . . . . . . . . . Bothacking | -11 -10 -10 -10 -8 -8 -6 -6 -6 -6 -5 -5 -5 -5 -5 -5 -4 ------------ Run | Yrd Mat Min Sub Rec Scr Fac Low Low Dat Pro Fac Was Fac Ext Cet Fac Used RIF Installer . | . . . . . . . . . . . . . . . . . Robots Hacked . | . . . . . . . . . . . . . . . . . Non-combat . | . . . . . . . . . . . . . . . . . Combat . | . . . . . . . . . . . . . . . . . Robot Hacks Applied . | . . . . . . . . . . . . . . . . . Relay Couplers Released . | . . . . . . . . . . . . . . . . . Fabnet Peak Effective % . | . . . . . . . . . . . . . . . . . Robots Rewired 20 | . . . . . . . . . . . . . . 20 . . Allies Hacked 1 | . . . . . . . . . . . . . . . . 1 Hacks Repelled . | . . . . . . . . . . . . . . . . . Allies | -11 -10 -10 -10 -8 -8 -6 -6 -6 -6 -5 -5 -5 -5 -5 -5 -4 -------- Run | Yrd Mat Min Sub Rec Scr Fac Low Low Dat Pro Fac Was Fac Ext Cet Fac Total Allies 29 | . . 1 . . . . . . . . . . . 28 . . Largest Group 11 | . . 1 . . . . . . . . . . . 11 7 3 Highest-Rated Group 367 | . . 31 . . . . . . . . . . . 367 199 94 Highest-Rated Ally 50 | . . 31 . . . . . . . . . . . 50 39 39 Total Orders 11 | . . . . . . . . . . 8 1 . . . . 2 EXPLORE 8 | . . . . . . . . . . 5 1 . . . . 2 RETURN 3 | . . . . . . . . . . 3 . . . . . . Ally Attacks 264 | . . 4 . . . . . . . . . . . 226 18 16 Total Damage 5078 | . . 43 . . . . . . . . . . . 4344 438 253 Kills 44 | . . 1 . . . . . . . . . . . 35 6 2 Allies Corrupted . | . . . . . . . . . . . . . . . . . Allies Melted . | . . . . . . . . . . . . . . . . . Intel | -11 -10 -10 -10 -8 -8 -6 -6 -6 -6 -5 -5 -5 -5 -5 -5 -4 ------- Run | Yrd Mat Min Sub Rec Scr Fac Low Low Dat Pro Fac Was Fac Ext Cet Fac Active Infowar (turns) 4347 | . . . . . . 1325 3 . . 665 421 348 114 1468 3 . Sensors 1789 | . . . . . . . . . . 665 421 348 114 241 . . Seismic 434 | . . . . . . 434 . . . . . . . . . . Decoding 2354 | . . . . . . . . . . . 421 348 114 1468 3 . T.N.C. 894 | . . . . . . 891 3 . . . . . . . . . Robot Analysis Total 8 | . . . . . 7 . . . . . . . . 1 . . Derelict Logs Recovered 7 | . . 2 2 . . . . 1 . 2 . . . . . . Drone Launches 8 | . . . . . . . . . . 5 1 . . . . 2 Drone Recoveries 7 | . . . . . . . . . . 4 1 . . . . 2 Decoded 0b10 Intel 14 | . . . . . . . . . . . 6 . . 8 . . Patrols 1 | . . . . . . . . . . . . . . 1 . . Investigations 1 | . . . . . . . . . . . . . . 1 . . Guards 12 | . . . . . . . . . . . 6 . . 6 . . Exploration | -11 -10 -10 -10 -8 -8 -6 -6 -6 -6 -5 -5 -5 -5 -5 -5 -4 ------------- Run | Yrd Mat Min Sub Rec Scr Fac Low Low Dat Pro Fac Was Fac Ext Cet Fac Turns Passed 12971 | 4 589 848 1000 1033 2452 1335 896 702 92 733 421 348 114 1468 136 800 Spaces Moved 7265 | 3 220 319 581 491 1216 925 601 556 76 392 255 161 78 871 96 424 Core 4 | . . . . . . . . . . . . . . . . 4 Treads 528 | . 177 319 3 . . . . . . . . . . 22 . 7 Legs 5580 | 3 43 . 20 491 1216 925 601 556 76 392 63 . . 685 96 413 Wheels 1153 | . . . 558 . . . . . . . 192 161 78 164 . . Hover . | . . . . . . . . . . . . . . . . . Flight . | . . . . . . . . . . . . . . . . . Fastest Speed 50 | 120 120 240 130 200 200 125 122 122 122 122 120 130 130 115 120 50 Average Speed 152 | 120 216 240 144 200 200 125 123 122 122 122 128 139 130 127 120 120 Slowest Speed 320 | 120 240 240 320 200 200 126 125 122 122 122 130 145 130 240 120 260 Overloaded Moves . | . . . . . . . . . . . . . . . . . Propulsion Burnouts . | . . . . . . . . . . . . . . . . . Robots Hopped . | . . . . . . . . . . . . . . . . . Potential Cave-ins 5 | . . . . . . . . . . . . 5 . . . . Cave-ins Triggered 1 | . . . . . . . . . . . . 1 . . . . Exploration Rate (%) 50 | 1 44 56 32 87 87 26 79 63 68 89 10 73 3 88 37 12 Regions Visited 16 Branch Regions 10 Pre-discovered Areas 10 | . . 1 1 5 1 . . . 1 . . . . . . 1 Known Exits Taken 3 | . . . . . . . . . . . . . 1 1 1 . Unknown Exits Taken 11 | 1 1 1 1 1 1 1 1 1 1 1 . . . . . . Scrap Searched 11 | . . 1 . . 3 . 2 2 . 3 . . . . . . Spaces Dug 59 | . . . 8 . . 17 . . . 4 14 9 2 . . 5 Terrain Destroyed 122 | . . . 44 10 . 17 . . . 10 14 19 3 . . 5 Melee 51 | . . . . . . 17 . . . 4 14 9 2 . . 5 Projectile 11 | . . . . . . . . . . . . 10 1 . . . AOE 60 | . . . 44 10 . . . . . 6 . . . . . . Terrain Rammed . | . . . . . . . . . . . . . . . . . Walls Destroyed . | . . . . . . . . . . . . . . . . . Machines Disabled . | . . . . . . . . . . . . . . . . . Actions | -11 -10 -10 -10 -8 -8 -6 -6 -6 -6 -5 -5 -5 -5 -5 -5 -4 --------- Run | Yrd Mat Min Sub Rec Scr Fac Low Low Dat Pro Fac Was Fac Ext Cet Fac Total 8587 | 3 287 372 649 527 1245 1048 685 575 75 574 309 233 86 1179 116 624 Wait 351 | . 19 16 12 20 . 23 18 . . 114 8 8 . 35 12 66 Move 7249 | 2 219 318 580 490 1215 924 600 555 75 391 255 159 77 870 95 424 Hop . | . . . . . . . . . . . . . . . . . Pick Up 110 | . 12 4 2 4 12 19 5 4 . 5 8 3 3 20 1 8 Fast Attach 39 | . 1 . 1 . 2 4 2 . . . 2 3 2 15 . 7 Attach 39 | . . . 3 1 . 9 2 . . 7 5 . 2 1 1 8 Detach 4 | . . . . . . 2 . . . 1 . . . 1 . . Swap 69 | 1 6 5 3 1 . 7 3 4 . 5 1 6 . 12 2 13 Drop 117 | . 2 8 4 1 16 18 9 6 . 1 3 5 . 29 3 12 Fire 153 | . 28 21 44 10 . . . . . 11 . 39 . . . . Melee 297 | . . . . . . 42 46 5 . 39 27 9 2 39 2 86 Ram . | . . . . . . . . . . . . . . . . . Kick 1 | . . . . . . . . . . . . . . 1 . . Crush . | . . . . . . . . . . . . . . . . . Escape Stasis 9 | . . . . . . . . . . . . 1 . 8 . . Rewire 148 | . . . . . . . . . . . . . . 148 . . Trap . | . . . . . . . . . . . . . . . . . Miscellaneous 1 | . . . . . . . . 1 . . . . . . . . Route ------- -11/Scrapyard -10/Materials (discovered 2 exits: [*Mat] / [*Min]) -10/Mines (discovered 2 exits: [*Mat] / [*Sub]) -10/Subcaves -8/Recycling (discovered 2 exits: *Fac / *Scr) -8/Scraptown (discovered 2 exits: *Fac x2) -6/Factory (discovered 3 exits: *Fac / [*Low x2]) -6/Lower Caves -6/Lower Caves (discovered 2 exits: *Fac / *Dat) -6/Data Miner -5/Proximity Caves -5/Factory -5/Waste -5/Factory -5/Extension (discovered 2 exits: *Fac / *Cet) -5/Cetus -4/Factory History --------- Turn | Location | Event 3 | -11/Scrapyard | Discovered new exit (range 2) 5 | -11/Scrapyard | Entered Materials 151 | -10/Materials | Discovered new exit (range 8) 298 | -10/Materials | Discovered new exit (range 13) 314 | -10/Materials | Build established: Mutant 594 | -10/Materials | Entered Mines 632 | -10/Mines | Learned location of Storage (-8) 690 | -10/Mines | Joined a pair of Derelicts in attacking an 0b10 outpost 912 | -10/Mines | Received a Mining Laser from a helpful Derelict 1019 | -10/Mines | Discovered new exit (range 6) 1231 | -10/Mines | Discovered new exit (range 6) 1385 | -10/Mines | Build established: Scavenger-Mutant 1442 | -10/Mines | Entered Subcaves 1443 | -10/Subcaves | Approached by a straggling Scientist 1732 | -10/Subcaves | A swath of the cavern ceiling suddenly collapsed 1757 | -10/Subcaves | Build established: Mutant 2254 | -10/Subcaves | Discovered new exit (range 14) 2382 | -10/Subcaves | A Subdweller sparked back to life 2382 | -10/Subcaves | A Subdweller sparked back to life 2382 | -10/Subcaves | A Subdweller sparked back to life 2388 | -10/Subcaves | Core integrity fell below 50% 2401 | -10/Subcaves | Found Prototype Leg 2401 | -10/Subcaves | Identified Cargo Legs 2402 | -10/Subcaves | Attached Cargo Legs, gained temporary slots: Utility x2 2442 | -10/Subcaves | Entered Recycling 2841 | -8/Recycling | Discovered new exit (range 16) 3381 | -8/Recycling | Scanned before Scraplab entrance 3409 | -8/Recycling | Entered Scraplab 3425 | -8/Recycling | Discovered new exit (range 4) 3475 | -8/Recycling | Entered Scraptown 3926 | -8/Scraptown | Discovered new exit (range 13) 4050 | -8/Scraptown | Visited Assassins FH 4102 | -8/Scraptown | Visited Symbiants 4453 | -8/Scraptown | Visited Cyclists 4569 | -8/Scraptown | Visited UFD Registry 4571 | -8/Scraptown | Registered with UFD as "Matterbox" 4639 | -8/Scraptown | Visited Junk Repository 4720 | -8/Scraptown | Visited Abandonware Association 4740 | -8/Scraptown | Learned abandonware demo "HACKBUD.EXE" 4740 | -8/Scraptown | Learned abandonware demo "SHUTEYE.EXE" 4790 | -8/Scraptown | Visited Research Penetration Think Tank 4868 | -8/Scraptown | Delivered Scrap Shield to a Scientist 5061 | -8/Scraptown | Visited Derelict Rescue Squad 5086 | -8/Scraptown | Found DRS Beacon 5120 | -8/Scraptown | Visited Infowarlord's Domain 5135 | -8/Scraptown | Found Exp. Terrain Scan Processor 5184 | -8/Scraptown | Visited Junk Cannon Lab 5213 | -8/Scraptown | Found Prototype Special Weapon 5252 | -8/Scraptown | Visited Analyses Database 5304 | -8/Scraptown | Visited Sword Containment 5375 | -8/Scraptown | Visited Chapter 10 5759 | -8/Scraptown | Met Optimus 5759 | -8/Scraptown | Accepted into 0bPrime 5893 | -8/Scraptown | Found Scrap Suit 5921 | -8/Scraptown | Discovered new exit (range 3) 5927 | -8/Scraptown | Entered Factory 5927 | -6/Factory | Evolved 8 slots: Power x1, Propulsion x3, Utility x4 5949 | -6/Factory | Loaded intel: 8 recycling unit locations 6175 | -6/Factory | Spotted B-75 Beast 6656 | -6/Factory | Discovered new exit (range 11) 6913 | -6/Factory | Discovered new exit (range 13) 7223 | -6/Factory | Discovered new exit (range 15) 7262 | -6/Factory | Entered Lower Caves 7264 | -6/Lower Caves | UFD Scientist delivered a prototype 7306 | -6/Lower Caves | Found Prototype Protection 7306 | -6/Lower Caves | Identified Enh. Scrap Shield 7911 | -6/Lower Caves | Build established: Gladiator 8018 | -6/Lower Caves | Discovered new exit (range 10) 8158 | -6/Lower Caves | Entered another Lower Caves area 8159 | -6/Lower Caves | Activated DRS Beacon 8259 | -6/Lower Caves | Learned Factory terminal intel 8493 | -6/Lower Caves | Encountered a Warlord checkpoint 8497 | -6/Lower Caves | Discovered new exit (range 6) 8778 | -6/Lower Caves | Discovered new exit (range 11) 8798 | -6/Lower Caves | Found DCF Scrap (13 items) 8860 | -6/Lower Caves | Entered Data Miner 8860 | -6/Data Miner | Discovered new exit (range 6) 8884 | -6/Data Miner | Met Data Miner 8904 | -6/Data Miner | Learned location of Section 7 (-2) 8904 | -6/Data Miner | Acquired the access code to Warlord's prototype stash 8924 | -6/Data Miner | Received God Mode back door access code from Data Miner 8952 | -6/Data Miner | Entered Proximity Caves 9036 | -5/Proximity Caves | Destroyed 8 combat bots 9061 | -5/Proximity Caves | Learned location of 1 exit from Factory 9075 | -5/Proximity Caves | Learned Factory emergency access door positions 9109 | -5/Proximity Caves | Attracted the attention of an 0b10 checkpoint 9569 | -5/Proximity Caves | Build established: Derelict-Gladiator 9596 | -5/Proximity Caves | Discovered new exit (range 9) 9685 | -5/Proximity Caves | Entered Factory 9685 | -5/Factory | Evolved 2 slots: Utility x2 9686 | -5/Factory | Identified exit to Extension 9688 | -5/Factory | Loaded intel: 28 terminal locations 9834 | -5/Factory | Lost 4 parts (3n1u) 10106 | -5/Factory | Sucked down chute 10106 | -5/Factory | Entered Waste 10116 | -5/Waste | Spotted C-40 Crusher 10121 | -5/Waste | EMP discharged 10143 | -5/Waste | Destroyed C-40 Crusher 10151 | -5/Waste | Spotted C-40 Crusher 10160 | -5/Waste | Destroyed C-40 Crusher 10178 | -5/Waste | Spotted C-40 Crusher 10221 | -5/Waste | EMP discharged 10221 | -5/Waste | System corruption reached 10% 10236 | -5/Waste | Spotted C-40 Crusher 10248 | -5/Waste | Destroyed C-40 Crusher 10319 | -5/Waste | Spotted C-40 Crusher 10321 | -5/Waste | EMP discharged 10323 | -5/Waste | Crushed by Compactor (1 part destroyed, 1 dropped) 10339 | -5/Waste | Spotted C-40 Crusher 10377 | -5/Waste | Crushed by falling debris 10388 | -5/Waste | Crushed by Compactor (0 parts destroyed, 2 dropped) 10394 | -5/Waste | Crushed by Compactor (0 parts destroyed, 1 dropped) 10421 | -5/Waste | EMP discharged 10421 | -5/Waste | System corruption reached 30% 10429 | -5/Waste | Build established: Derelict-Mutant 10442 | -5/Waste | Discovered new exit (range 10) 10453 | -5/Waste | Identified exit to Factory 10454 | -5/Waste | Entered Factory 10542 | -5/Factory | Discovered exit to Extension (range 5) 10568 | -5/Factory | Entered Extension 10843 | -5/Extension | Lost 3 parts (1p1n1u) 10922 | -5/Extension | Rescued a captive Derelict 11157 | -5/Extension | Rescued a captive Derelict 11159 | -5/Extension | Rescued a captive Derelict 11419 | -5/Extension | Build established: Commander-Gladiator 11502 | -5/Extension | Spotted B-75 Beast 11515 | -5/Extension | Allies destroyed B-75 Beast 11515 | -5/Extension | Spotted B-75 Beast 11541 | -5/Extension | Allies destroyed B-75 Beast 11561 | -5/Extension | Lost 7 allies 11664 | -5/Extension | Scrapoid reinforcements arrived 11768 | -5/Extension | First assault squad dispatched 11789 | -5/Extension | Lost 4 allies 11845 | -5/Extension | Lost 5 allies 11991 | -5/Extension | Discovered new exit (range 10) 11993 | -5/Extension | Discovered new exit (range 6) 12035 | -5/Extension | Identified exit to Cetus 12036 | -5/Extension | Entered Cetus 12036 | -5/Cetus | Accompanied by 7 allies 12053 | -5/Cetus | Spotted Cetus Guard 12054 | -5/Cetus | Spotted Cetus Guard 12055 | -5/Cetus | Spotted Cetus Guard 12056 | -5/Cetus | Spotted Cetus Guard 12060 | -5/Cetus | Allies destroyed Cetus Guard 12061 | -5/Cetus | Allies destroyed Cetus Guard 12073 | -5/Cetus | Destroyed Cetus Guard 12074 | -5/Cetus | Allies destroyed Cetus Guard 12098 | -5/Cetus | Build established: Scavenger-Gladiator 12109 | -5/Cetus | Lost 4 allies 12142 | -5/Cetus | Discovered new exit (range 16) 12159 | -5/Cetus | Identified exit to Factory 12172 | -5/Cetus | Entered Factory 12172 | -4/Factory | Accompanied by 3 allies 12172 | -4/Factory | Evolved 2 slots: Propulsion x1, Utility x1 12294 | -4/Factory | Destroyed 7 combat bots 12303 | -4/Factory | Lost 4 parts (1p3n) 12444 | -4/Factory | Found Quantum Capacitor 12509 | -4/Factory | Loaded intel: 8 recycling unit locations 12509 | -4/Factory | Learned location of Protoforge (-2) 12696 | -4/Factory | Incoming investigation squad redirected 12921 | -4/Factory | Cargo convoy interrupted 12922 | -4/Factory | First assault squad dispatched 12923 | -4/Factory | Spotted Striker 12968 | -4/Factory | Core integrity fell below 50% 12971 | -4/Factory | Core integrity fell below 20% 12971 | -4/Factory | Released all parts (5) 12972 | -4/Factory | Destroyed by H-77 Assassin with High-powered Shotgun Last Messages --------------- 12968_ U-05 Engineer destroyed. 12969_ Penetrated by Slug. 12969_ K-01 Serf collects debris. 12969_ Companion Sword destroyed. Companion Sword: "I didn't think it would end like this..." 12969_ Penetrated by Slug. 12971_ Released Huge Storage Unit. 12971_ Released Imp. Melee Analysis Suite. 12971_ Released Adv. Melee Analysis Suite. 12971_ Released Imp. Melee Analysis Suite. 12971_ Released Graphene Brace. 12971_ Penetrated by Slug. 12971_ Slug penetrates Wall. 12971_ Penetrated by Slug. 12972_ K-01 Serf collects debris. 12972_ Slug penetrates Wall. 12972_ Slug penetrates Earth. 12972_ Penetrated by Slug. 12972_ Slug penetrates Wall. Map ----- +----------------------------------------------------+ | ?????????????????????????????????# =#% | | ?????????????????????????????????# # | | ?????????????????????????????????# # | | ??????????????????????######+##### # | | ????????????????????? # | | ????????????????????? # | | ?????????????????????! # | | ????????????????????????? """ # | | ????????????????????????? """ #### | | ???????????????????????? """ ####/##### #??? | | ??????????????????????? # ## #??? | | ???????????????????????"" """ # ## ? | | ????????????????????? """ """ # ## | | ????????????????????? """ """ # ## | | ?????????????????????? # ""## | | ???????????????????????? # """#? | | ?????????????????????????# # " #?########+ | | ?????????????????????????# p #%i% #?????????? | | ?????????????????????????# p # % ""#?????????? | | ?????????????????????????# hh!; x #?????????? | | ?????????????????????????#!!*hpp "#?????????? | | ?????????????????????????#!!%x%# %%"" #?????????? | | ?????????????????????????#!=!!h# ""#?????????? | | ?????????????????????????#!!%!!# "#?????????? | | ?????????????????###+#####=h%!%# ""#?????????? | | ?????????? @|!|!*# #?????????? | | ?????????? =% !!! # #?????????? | | ?????????? % k ! ##########????????? | | ??????????? % ! *!%##??###?##????????? | | ??????????? |%!|#?????????????????? | | ???????????? ###/###### ####?????????????????? | | ???????????? ??? ?????# ????????????????????? | | ???????????? ????+ w??????# ????????????????????? | | ?????????????????# ???????# ???????????????????? | | ?????????????????+????????# t???????????????????? | | ??????????????????????????? ##??????????????????? | | ???????????????????????????# #???????????????????? | | ????????????????????????????##???????????????????? | | ?????????????????????????????????????????????????? | | ?????????????????????????????????????????????????? | | ?????????????????????????????????????????????????? | | ?????????????????????????????????????????????????? | | ???????????????????????????????"""Y"""???????????? | | ???????????????????????????????"""""""???????????? | | ?????????????????????????????????????????????????? | | ?????????????????????????????????????????????????? | | ?????????????????????????????????????????????????? | | ?????????????????????????????????????????????????? | | ?????????????????????????????????????????????????? | | ?????????????????????????????????????????????????? | +----------------------------------------------------+ Best States ------------- Heat Dissipation 67 Coolant Potential 65 Energy Generation 37 Energy Capacity 575 Matter Stores 300 Matter Capacity 300 Sight Range 16 Robot Scan Range 15 Terrain Scan Density 10 Armor Coverage 800 Resistance: TH 10 Melee Speed Boost 20 Phase Shifting 5 Evasion (%) 75 Targeting Accuracy 11 Melee Accuracy 26 Recoil Reduction 6 Offensive Hacking 10 Authchip Count 1 Item Schematics ----------------- Hvy. Plasma Cannon | -8/Recycling | Hacked Combat Drone Bay | -6/Data Miner | Free Lgt. Regenerative Plating | -6/Data Miner | Free Enh. Armored Leg | -6/Data Miner | Free Prc. Energy Filter | -6/Data Miner | Free Hvy. Proton Cannon | -6/Data Miner | Free Myomer Leg | -6/Data Miner | Free Adv. Coolant Injector | -6/Data Miner | Free Adv. Concussive RPG | -6/Data Miner | Free Adv. Recoil Stabilizer | -6/Data Miner | Free Adv. Cryofiber Web | -6/Data Miner | Free Hvy. Gauss Cannon | -6/Data Miner | Free Nova Cannon | -6/Data Miner | Free Adv. Remote Datajack | -6/Data Miner | Free Robot Schematics ------------------ B-48 Gladiator | -6/Data Miner | Free E-15 Imp | -6/Data Miner | Free G-50 Soldier | -6/Data Miner | Free B-60 Warrior | -6/Data Miner | Free X-67 Chaingunner | -6/Data Miner | Free Fabricated ------------ Nothing Repaired ---------- Nothing Alien Tech Used ----------------- None Achievements -------------- None Challenges ------------ None Game ------ Seed WarpCoordinationCutter Manual? 0 Play Time 01:51:11 Cumulative 217.1 hours Start 2025.05.31 @ 10:59:56 End 2025.05.31 @ 16:11:49 Sessions 3 Manual Loads 0 Difficulty Rogue Special Mode None Game No. 123 Rogue 123 Adventurer 0 Explorer 0 Win Type - Total 9 Types 9/0/0/0/0/0/0/0/0/0 Lore% 67 Gallery% 65 Achievement% 60 Wizard Run 0 Options --------- Layout 1 ASCII 0 Keyboard 0 Movement Numpad Keybinds 0 Fullscreen 1 Font 24/Smallcaps Map View 50x35 Zoom Use 0% Tactical HUD 1 Map Filters NONE Filters NONE Steam 1 RUN: 1b999aa6-5e0b-4213-b50a-76d19bd42550